fUST/lending_fUST_20250901
["ID","MTS","AMOUNT","RATE_DAILY","PERIOD"]
[382658104,1756697871227,-480.0,0.00015925,2]
[382658105,1756697871258,-569.6,0.00015925,2]
[382658106,1756697871289,-480.0,0.00015925,2]
[382658107,1756697873349,-306.17633595,0.00015926,2]
[382658108,1756697873366,-480.0,0.00015926,2]
[382658109,1756697873426,-88.77366405,0.00015926,2]
[382658110,1756697873436,-480.0,0.00015926,2]
[382658111,1756697873446,-0.82633595,0.00015926,2]
[382658112,1756697873467,-480.0,0.00015926,2]
[382658113,1756697873494,-69.89246902,0.00015926,2]
[382658114,1756697873552,1815.8201658,0.00014944,2]
[382658115,1756697873783,188.5529333,0.00014944,2]
[382658116,1756697879589,160.27,0.00015105,2]
[382658117,1756697879894,160.27,0.00015105,2]
[382658118,1756697880321,160.24,0.00015105,2]
[382658119,1756697891936,751.9209699,0.00015004,2]
[382658120,1756697897212,-157.13392345,0.00015805,2]
[382658121,1756697897605,-8767.3090301,0.00015805,2]
[382658122,1756697897680,-4493.61216476,0.00015805,2]
[382658123,1756697897709,-195.95398973,0.00015904,2]
[382658124,1756697897737,-140.87769102,0.00015925,2]
[382658125,1756697897791,-339.12230898,0.00015925,2]
[382658126,1756697897821,-681.05,0.00015925,2]
[382658127,1756697897848,-480.0,0.00015925,2]
[382658128,1756697897875,-480.0,0.00015925,2]
[382658129,1756697897901,-768.63,0.00015925,2]
[382658130,1756697897928,-480.0,0.00015925,2]
[382658131,1756697897958,-480.0,0.00015925,2]
[382658132,1756697897986,-480.0,0.00015925,2]
[382658133,1756697898012,-426.54119503,0.00015926,2]
[382658134,1756697898039,-480.0,0.00015926,2]
[382658135,1756697898066,-7.56760994,0.00015926,2]
[382658136,1756697898164,-472.43239006,0.00015926,2]
[382658137,1756697898192,-480.0,0.00015926,2]
[382658138,1756697898220,-480.0,0.00015926,2]
[382658139,1756697898248,-480.0,0.00015926,2]
[382658140,1756697898277,-480.0,0.00015926,2]
[382658141,1756697898306,-480.0,0.00015926,2]
[382658142,1756697898334,-484.44,0.00015926,2]
[382658143,1756697898366,-944.22,0.00015926,2]
[382658144,1756697898394,-37.45521988,0.00015926,2]
[382658145,1756697898508,-1322.91478012,0.00015926,2]
[382658146,1756697898537,-482.14795609,0.00015926,2]
[382658147,1756697898568,-480.0,0.00015926,2]
[382658148,1756697898596,-480.0,0.00015926,2]
[382658149,1756697898629,-748.17,0.00015926,2]
[382658150,1756697898721,-4691.28,0.00015926,2]
[382658151,1756697898748,-92.81,0.00015926,2]
[382658152,1756697898875,-431.83,0.00015926,2]
[382658153,1756697898901,-200.93802996,0.00015926,2]
[382658154,1756697898931,-480.0,0.00015926,2]
[382658155,1756697898960,-483.7328793,0.00015926,2]
[382658156,1756697899171,-480.0,0.00015926,2]
[382658157,1756697899200,-1138.4,0.00015926,2]
[382658158,1756697899231,-1006.1,0.00015926,2]
[382658159,1756697899258,-200.75158927,0.00015926,2]
[382658160,1756697899286,-420.91500294,0.00015926,2]
[382658161,1756697899405,-314.67499706,0.00015926,2]
[382658162,1756697899435,-480.0,0.00015926,2]
[382658163,1756697899465,-884.7,0.00015926,2]
[382658164,1756697899494,-480.0,0.00015926,2]
[382658165,1756697899522,-455.96158309,0.00015926,2]
[382658166,1756697899552,-1898.85,0.00015926,2]
[382658167,1756697899728,-1151.57,0.00015926,2]
[382658168,1756697899756,-1219.2,0.00015926,2]
[382658169,1756697899785,-480.0,0.00015926,2]
[382658170,1756697899816,-480.0,0.00015926,2]
[382658171,1756697899844,-480.0,0.00015926,2]
[382658172,1756697899872,-1097.43,0.00015926,2]
[382658173,1756697900063,-298.92234113,0.00015926,2]
[382658174,1756697900092,-480.0,0.00015926,2]
[382658175,1756697900121,-480.0,0.00015926,2]
[382658176,1756697900148,-790.44,0.00015926,2]
[382658177,1756697900179,-480.0,0.00015926,2]
[382658178,1756697900209,-487.37,0.00015926,2]
[382658179,1756697900238,-480.0,0.00015926,2]
[382658180,1756697900266,-507.49,0.00015926,2]
[382658181,1756697900759,-5.18434094,0.00015926,2]
[382658182,1756697900776,-480.0,0.00015926,2]
[382658183,1756697900789,-480.0,0.00015926,2]
[382658184,1756697900808,-480.0,0.00015926,2]
[382658185,1756697900824,-1097.43,0.00015926,2]
[382658186,1756697900839,-183.61,0.00015926,2]
[382658187,1756697900862,-298.92234113,0.00015926,2]
[382658188,1756697900876,-480.0,0.00015926,2]
[382658189,1756697900891,-480.0,0.00015926,2]
[382658190,1756697900904,-790.44,0.00015926,2]
[382658191,1756697900917,-107.48331793,0.00015926,2]
[382658192,1756697900927,-372.51668207,0.00015926,2]
[382658193,1756697900941,-107.48331793,0.00015926,2]
[382658194,1756697900951,-379.88668207,0.00015926,2]
[382658195,1756697900991,-100.11331793,0.00015926,2]
[382658196,1756697901001,-379.88668207,0.00015926,2]
[382658197,1756697901065,-101.70018472,0.00015926,2]
[382658198,1756697901074,-405.78981528,0.00015926,2]
[382658199,1756697901107,-1991.56531774,0.00015926,2]
[382658200,1756697907611,-305.8465282,0.00015904,2]
[382658201,1756697907642,-480.0,0.00015904,2]
[382658202,1756697907670,-480.0,0.00015925,2]
[382658203,1756697907699,-480.0,0.00015925,2]
[382658204,1756697907729,-1821.74,0.00015925,2]
[382658205,1756697907757,-230.57207662,0.00015926,2]
[382658206,1756697907858,-2403.69279036,0.00015926,2]
[382658207,1756697907890,-634.87,0.00015926,2]
[382658208,1756697907919,-2010.44,0.00015926,2]
[382658209,1756697907946,-480.0,0.00015926,2]
[382658210,1756697907981,-481.86596231,0.00015926,2]
[382658211,1756697908011,-480.0,0.00015926,2]
[382658212,1756697908038,-694.59,0.00015926,2]
[382658213,1756697908092,-505.33087012,0.00015926,2]
[382658214,1756697908121,-1017.23,0.00015926,2]
[382658215,1756697908153,-799.51,0.00015926,2]
[382658216,1756697908186,-480.0,0.00015926,2]
[382658217,1756697908219,-712.69,0.00015926,2]
[382658218,1756697908248,-720.13,0.00015926,2]
[382658219,1756697908277,-480.0,0.00015926,2]
[382658220,1756697908306,-90.22825976,0.00015926,2]
[382658221,1756697908411,-389.77174024,0.00015926,2]
[382658222,1756697908439,-4220.46651952,0.00015926,2]
[382658223,1756697908552,-779.53348048,0.00015926,2]
[382658224,1756697908580,-480.0,0.00015926,2]
[382658225,1756697908608,-480.0,0.00015926,2]
[382658226,1756697908640,-600.45,0.00015926,2]
[382658227,1756697908668,-480.0,0.00015926,2]
[382658228,1756697908696,-480.0,0.00015926,2]
[382658229,1756697908722,-480.0,0.00015926,2]
[382658230,1756697908749,-602.11,0.00015926,2]
[382658231,1756697908777,-564.76,0.00015926,2]
[382658232,1756697908925,-769.06,0.00015926,2]
[382658233,1756697908952,-480.0,0.00015926,2]
[382658234,1756697908980,-1849.04,0.00015926,2]
[382658235,1756697909008,-480.0,0.00015926,2]
[382658236,1756697909035,-508.74794958,0.00015926,2]
[382658237,1756697909063,-582.71410084,0.00015926,2]
[382658238,1756697909130,-660.88589916,0.00015926,2]
[382658239,1756697909158,-480.0,0.00015926,2]
[382658240,1756697909188,-3374.95,0.00015926,2]
[382658241,1756697909215,-480.0,0.00015926,2]
[382658242,1756697909347,-5000.0,0.00015926,2]
[382658243,1756697909518,-480.0,0.00015926,2]
[382658244,1756697909547,-480.0,0.00015926,2]
[382658245,1756697909575,-890.65,0.00015926,2]
[382658246,1756697909602,-481.78947905,0.00015926,2]
[382658247,1756697909630,-481.34972911,0.00015926,2]
[382658248,1756697909657,-1466.59,0.00015926,2]
[382658249,1756697909684,-480.0,0.00015926,2]
[382658250,1756697910183,-0.31741077,0.00015926,2]
[382658251,1756697910202,-481.34972911,0.00015926,2]
[382658252,1756697910221,-600.86286012,0.00015926,2]
[382658253,1756697910231,-614.54,0.00015926,2]
[382658254,1756697910240,-251.18713988,0.00015926,2]
[382658255,1756697910254,-228.81286012,0.00015926,2]
[382658256,1756697910264,-251.18713988,0.00015926,2]
[382658257,1756697910426,-228.81286012,0.00015926,2]
[382658258,1756697910437,-250.43872356,0.00015926,2]
[382658259,1756697914406,314.3082959,0.00014958,2]
[382658260,1756697916522,1257.23318359,0.00015033,2]
[382658261,1756697918555,2828.77466307,0.00015108,2]
[382658262,1756697920273,5028.93273434,0.00015183,2]
[382658263,1756697923835,-366.98159628,0.00015258,2]
[382658264,1756697925066,2142.30260259,0.000152,2]
[382658265,1756697925090,2857.69739741,0.000152,2]
[382658266,1756697925829,-203.06026371,0.00015258,2]
[382658267,1756697926723,1859.683399,0.000148,2]
[382658268,1756697927164,-227.4492808,0.00015258,2]
[382658269,1756697928737,-152.19350763,0.00015258,2]
[382658270,1756697931721,-154.29976482,0.00015258,2]
[382658271,1756697933384,-240.24603465,0.00015258,2]
[382658272,1756697933781,2033.51385415,0.000152,2]
[382658273,1756697936563,-153.44348873,0.00015258,2]
[382658274,1756697939475,-176.0583158,0.00015258,2]
[382658275,1756697940991,-249.5108133,0.00015258,2]
[382658276,1756697944035,-233.58949047,0.00015258,2]
[382658277,1756697947516,-4306.99286618,0.00015258,2]
[382658278,1756697947666,-1386.02426764,0.00015258,2]
[382658279,1756697947696,-1184.5344,0.00015293,2]
[382658280,1756697947727,-300.0,0.00015446,2]
[382658281,1756697947757,-1043.407529,0.00015447,2]
[382658282,1756697947785,-571.03834472,0.00015447,2]
[382658283,1756697947905,-1030.00091728,0.00015447,2]
[382658284,1756697947933,-838.53205305,0.00015448,2]
[382658285,1756697947963,-1262.94405934,0.00015766,2]
[382658286,1756697948018,-3737.05594066,0.00015766,2]
[382658287,1756697948047,-1008.09,0.00015904,2]
[382658288,1756697948076,-29.71811868,0.00015904,2]
[382658289,1756697948246,-450.28188132,0.00015904,2]
[382658290,1756697948277,-575.45660606,0.00015904,2]
[382658291,1756697948307,-482.49579189,0.00015925,2]
[382658292,1756697948335,-480.0,0.00015925,2]
[382658293,1756697948365,-411.43658638,0.00015925,2]
[382658294,1756697948396,-500.0,0.00015925,2]
[382658295,1756697948426,-500.0,0.00015925,2]
[382658296,1756697948455,-500.0,0.00015925,2]
[382658297,1756697948486,-500.0,0.00015925,2]
[382658298,1756697948518,-231.1045598,0.00015925,2]
[382658299,1756697948548,-219.88061479,0.00015925,2]
[382658300,1756697948659,-458.75755418,0.00015904,2]
[382658301,1756697948690,-579.37635485,0.00015925,2]
[382658302,1756697948721,-915.09,0.00015925,2]
[382658303,1756697948751,-480.0,0.00015925,2]
[382658304,1756697948782,-480.0,0.00015925,2]
[382658305,1756697948810,-480.0,0.00015925,2]
[382658306,1756697948841,-500.0,0.00015925,2]
[382658307,1756697948873,-500.0,0.00015925,2]
[382658308,1756697948904,-500.0,0.00015925,2]
[382658309,1756697949062,-500.0,0.00015925,2]
[382658310,1756697949093,-500.0,0.00015925,2]
[382658311,1756697949124,-500.0,0.00015925,2]
[382658312,1756697949155,-500.0,0.00015925,2]
[382658313,1756697949186,-500.0,0.00015925,2]
[382658314,1756697949218,-258.0952539,0.00015925,2]
[382658315,1756697949249,-500.0,0.00015925,2]
[382658316,1756697949282,-500.0,0.00015925,2]
[382658317,1756697949313,-500.0,0.00015925,2]
[382658318,1756697949345,-500.0,0.00015925,2]
[382658319,1756697949690,-500.0,0.00015925,2]
[382658320,1756697949720,-300.0,0.00015925,2]
[382658321,1756697949749,-229.56127644,0.00015926,2]
[382658322,1756697949780,-480.0,0.00015926,2]
[382658323,1756697949808,-480.0,0.00015926,2]
[382658324,1756697949836,-480.0,0.00015926,2]
[382658325,1756697949863,-480.0,0.00015926,2]
[382658326,1756697949894,-1288.94,0.00015926,2]
[382658327,1756697949978,-1979.02,0.00015926,2]
[382658328,1756697950007,-701.48,0.00015926,2]
[382658329,1756697950036,-480.0,0.00015926,2]
[382658330,1756697950065,-647.77,0.00015926,2]
[382658331,1756697950894,5000.0,0.000152,2]
[382658332,1756697960776,10000.01,0.00015,2]
[382658333,1756697960799,10000.01,0.00015,2]
[382658334,1756697960820,10000.01,0.00015,2]
[382658335,1756697960843,10000.01,0.00015,2]
[382658336,1756697960864,10000.01,0.00015,2]
[382658337,1756697960887,10000.01,0.00015,2]
[382658338,1756697960908,10000.01,0.00015,2]
[382658339,1756697960930,10000.01,0.00015,2]
[382658340,1756697960952,10000.01,0.00015,2]
[382658341,1756697960974,10000.01,0.00015,2]
[382658342,1756697961001,34226.30877061,0.00015,2]
[382658343,1756697967675,10000.01,0.00015,2]
[382658344,1756697967696,10000.01,0.00015,2]
[382658345,1756697967723,5524.44011731,0.00015,2]
[382658346,1756697967749,76739.58492262,0.00015,2]
[382658347,1756697974561,-219.36130539,0.00015588,2]
[382658348,1756697976072,-183.28086761,0.00015588,2]
[382658349,1756697978240,-245.16475776,0.00015588,2]
[382658350,1756697980341,-153.46117633,0.00015588,2]
[382658351,1756697982958,-382.2108872,0.00015432,2]
[382658352,1756697985669,-311.83185196,0.00015432,2]
[382658353,1756697988313,-281.9412158,0.00015432,2]
[382658354,1756697990735,-228.55692904,0.00015432,2]
[382658355,1756697991953,-266.59370059,0.00015432,2]
[382658356,1756697995746,-306.99465509,0.00015432,2]
[382658357,1756697997426,-271.43025014,0.00015432,2]
[382658358,1756697999075,-174.65961751,0.00015432,2]
[382658359,1756698001220,-224.66406432,0.00015432,2]
[382658360,1756698004012,-282.76244552,0.00015432,2]
[382658361,1756698007628,-2268.35438283,0.00015432,2]
[382658362,1756698007658,-1264.56934143,0.00015588,2]
[382658363,1756698007759,-2934.16255148,0.00015588,2]
[382658364,1756698007787,-300.0,0.00015744,2]
[382658365,1756698007820,-300.0,0.00015744,2]
[382658366,1756698007866,-300.0,0.00015744,2]
[382658367,1756698007898,-1131.68489704,0.00015744,2]
[382658368,1756698008323,-68.31510296,0.00015744,2]
[382658369,1756698008352,-4863.37979408,0.00015745,2]
[382658370,1756698008418,-136.62020592,0.00015745,2]
[382658371,1756698008448,-728.29,0.00015904,2]
[382658372,1756698008477,-480.0,0.00015904,2]
[382658373,1756698008504,-480.0,0.00015904,2]
[382658374,1756698008532,-480.0,0.00015904,2]
[382658375,1756698008562,-480.0,0.00015904,2]
[382658376,1756698008595,-480.0,0.00015904,2]
[382658377,1756698008624,-545.72,0.00015904,2]
[382658378,1756698008655,-480.0,0.00015904,2]
[382658379,1756698008689,-540.16958816,0.00015904,2]
[382658380,1756698008764,-338.41041184,0.00015904,2]
[382658381,1756698008794,-2240.67,0.00015904,2]
[382658382,1756698008824,-480.0,0.00015925,2]
[382658383,1756698008855,-480.0,0.00015925,2]
[382658384,1756698008886,-824.53,0.00015925,2]
[382658385,1756698008916,-490.22917632,0.00015925,2]
[382658386,1756698009090,-292.33082368,0.00015925,2]
[382658387,1756698009120,-779.24,0.00015925,2]
[382658388,1756698009150,-480.0,0.00015925,2]
[382658389,1756698009181,-480.0,0.00015925,2]
[382658390,1756698009211,-600.06,0.00015925,2]
[382658391,1756698009240,-480.0,0.00015925,2]
[382658392,1756698009270,-480.0,0.00015925,2]
[382658393,1756698009300,-508.9,0.00015925,2]
[382658394,1756698009332,-480.0,0.00015925,2]
[382658395,1756698009361,-358.94835264,0.00015925,2]
[382658396,1756698009558,-121.05164736,0.00015925,2]
[382658397,1756698009591,-507.49,0.00015925,2]
[382658398,1756698009621,-3471.66,0.00015926,2]
[382658399,1756698009652,-771.98670528,0.00015926,2]
[382658400,1756698009943,-255.63329472,0.00015926,2]
[382658401,1756698009974,-4568.77341056,0.00015926,2]
[382658402,1756698010100,-351.19658944,0.00015926,2]
[382658403,1756698010129,-480.0,0.00015926,2]
[382658404,1756698010158,-480.0,0.00015926,2]
[382658405,1756698010187,-480.0,0.00015926,2]
[382658406,1756698010217,-480.0,0.00015926,2]
[382658407,1756698010246,-480.0,0.00015926,2]
[382658408,1756698010276,-480.0,0.00015926,2]
[382658409,1756698010305,-481.71509124,0.00015926,2]
[382658410,1756698010335,-1153.80663864,0.00015926,2]
[382658411,1756698016779,300.0,0.00015,2]
[382658412,1756698017582,351.79091461,0.00014958,2]
[382658413,1756698018980,1407.16365845,0.00015033,2]
[382658414,1756698029893,168.46392776,0.000151,2]
[382658415,1756698060015,-183.54713937,0.00015108,2]
[382658416,1756698062267,-300.0,0.00015108,2]
[382658417,1756698064066,-279.01704242,0.00015108,2]
[382658418,1756698067782,-2403.55404973,0.00015108,2]
[382658419,1756698067914,-4371.35536618,0.00015183,2]
[382658420,1756698068091,-1257.29926764,0.00015183,2]
[382658421,1756698068229,-1214.03190753,0.00015258,2]
[382658422,1756698068354,-2428.06381506,0.00015258,2]
[382658423,1756698068635,-4856.12763012,0.00015258,2]
[382658424,1756698068694,-287.75473976,0.00015258,2]
[382658425,1756698068722,-4424.50052048,0.00015745,2]
[382658426,1756698068839,-575.49947952,0.00015745,2]
[382658427,1756698069099,-1521.26352475,0.00015825,2]
[382658428,1756698069153,-258.8711392,0.00015826,2]
[382658429,1756698073269,-288.54548674,0.000155,2]
[382658430,1756698077971,-294.0472595,0.00015412,2]
[382658431,1756698077999,-1798.74713986,0.000155,2]
[382658432,1756698079363,-2086.43699368,0.00015826,2]
[382658433,1756698079427,-10000.01,0.00015826,2]
[382658434,1756698079460,-10000.01,0.00015826,2]
[382658437,1756698082670,17608.62416277,0.00014945,2]
[382658439,1756698085019,-151.0,0.00014945,2]
[382658440,1756698087768,-2287.07408063,0.00014945,2]
[382658441,1756698087816,-5425.86183874,0.00015826,2]
[382658442,1756698087869,-10000.01,0.00015826,2]
[382658443,1756698088118,-10000.01,0.00015826,2]
[382658444,1756698088227,-10000.01,0.00015826,2]
[382658445,1756698088370,-10000.01,0.00015826,2]
[382658446,1756698088734,-10000.01,0.00015826,2]
[382658447,1756698088982,-166.32488001,0.00015826,2]
[382658448,1756698089015,-10000.01,0.00015826,2]
[382658449,1756698089031,-4979.53061048,0.00015826,2]
[382658450,1756698089041,-533.94,0.00015904,2]
[382658451,1756698089050,-480.0,0.00015904,2]
[382658452,1756698089060,-1193.97,0.00015904,2]
[382658453,1756698089069,-2072.24,0.00015904,2]
[382658454,1756698089079,-480.0,0.00015904,2]
[382658455,1756698089089,-260.32938952,0.00015925,2]
[382658456,1756698089128,-10000.01,0.00015925,2]
[382658457,1756698089158,-10000.01,0.00015925,2]
[382658458,1756698089927,5000.0,0.0001475,2]
[382658459,1756698117807,-5000.0,0.00015745,2]
[382658460,1756698117841,-0.01,0.00015904,2]
[382658461,1756698117908,-545.86,0.00015904,2]
[382658462,1756698117938,-1745.83,0.00015904,2]
[382658463,1756698117968,-480.0,0.00015904,2]
[382658464,1756698117999,-480.0,0.00015904,2]
[382658465,1756698118029,-641.4,0.00015904,2]
[382658466,1756698118128,-2213.83,0.00015925,2]
[382658467,1756698118353,-10000.01,0.00015925,2]
[382658468,1756698118391,-94.3957139,0.00015925,2]
[382658469,1756698118429,-188.7914278,0.00015925,2]
[382658470,1756698118463,-9622.4271444,0.00015925,2]
[382658471,1756698118484,-480.0,0.00015925,2]
[382658472,1756698118499,-542.89,0.00015925,2]
[382658473,1756698118508,-480.0,0.00015925,2]
[382658474,1756698118517,-480.0,0.00015925,2]
[382658475,1756698118527,-480.0,0.00015925,2]
[382658476,1756698118536,-937.06,0.00015925,2]
[382658477,1756698118545,-480.0,0.00015925,2]
[382658478,1756698118555,-480.0,0.00015925,2]
[382658479,1756698118565,-665.65,0.00015925,2]
[382658480,1756698118575,-480.0,0.00015925,2]
[382658481,1756698118585,-480.0,0.00015925,2]
[382658482,1756698118596,-576.22,0.00015925,2]
[382658483,1756698118605,-480.0,0.00015925,2]
[382658484,1756698118615,-690.13,0.00015925,2]
[382658485,1756698118625,-480.0,0.00015925,2]
[382658486,1756698118637,-760.89,0.00015925,2]
[382658487,1756698118646,-501.77,0.00015925,2]
[382658488,1756698118655,-336.6085722,0.00015925,2]
[382658489,1756698118701,-508.1314278,0.00015925,2]
[382658490,1756698118730,-1197.04,0.00015925,2]
[382658491,1756698118758,-480.0,0.00015925,2]
[382658492,1756698118786,-480.0,0.00015925,2]
[382658493,1756698118815,-480.0,0.00015925,2]
[382658494,1756698118845,-737.01,0.00015925,2]
[382658495,1756698118873,-480.0,0.00015925,2]
[382658496,1756698118902,-480.0,0.00015925,2]
[382658497,1756698118946,-480.0,0.00015925,2]
[382658498,1756698118972,-480.0,0.00015925,2]
[382658499,1756698119001,-480.0,0.00015925,2]
[382658500,1756698119029,-480.0,0.00015925,2]
[382658501,1756698119056,-480.0,0.00015925,2]
[382658502,1756698119084,-480.0,0.00015925,2]
[382658503,1756698119112,-1155.31,0.00015925,2]
[382658504,1756698119141,-480.0,0.00015925,2]
[382658505,1756698119171,-480.0,0.00015925,2]
[382658506,1756698119287,-1028.93,0.00015925,2]
[382658507,1756698119316,-266.57336136,0.00015926,2]
[382658508,1756698119343,-488.04670965,0.00015926,2]
[382658509,1756698119371,-480.0,0.00015926,2]
[382658510,1756698119398,-480.0,0.00015926,2]
[382658511,1756698119427,-480.0,0.00015926,2]
[382658512,1756698119456,-1150.71,0.00015926,2]
[382658513,1756698119483,-484.09405176,0.00015926,2]
[382658514,1756698119641,-480.0,0.00015926,2]
[382658515,1756698119671,-481.31194408,0.00015926,2]
[382658516,1756698119698,-480.0,0.00015926,2]
[382658517,1756698119726,-634.88,0.00015926,2]
[382658518,1756698119753,-481.62109571,0.00015926,2]
[382658519,1756698119780,-480.0,0.00015926,2]
[382658520,1756698119808,-480.0,0.00015926,2]
[382658521,1756698119834,-772.56,0.00015926,2]
[382658522,1756698119862,-481.88062441,0.00015926,2]
[382658523,1756698120096,-1004.41169497,0.00015926,2]
[382658524,1756698120127,-480.0,0.00015926,2]
[382658525,1756698120156,-481.4195146,0.00015926,2]
[382658526,1756698120185,-500.0,0.00015926,2]
[382658527,1756698120214,-536.47206465,0.00015926,2]
[382658528,1756698120242,-480.0,0.00015926,2]
[382658529,1756698120272,-1238.47,0.00015926,2]
[382658530,1756698120305,-78.46345156,0.00015926,2]
[382658531,1756698121518,-401.53654844,0.00015926,2]
[382658532,1756698121529,-480.0,0.00015926,2]
[382658533,1756698121539,-125.57023669,0.00015926,2]
[382658534,1756698121563,-354.42976331,0.00015926,2]
[382658535,1756698121573,-125.57023669,0.00015926,2]
[382658536,1756698122715,-151.0,0.00015588,2]
[382658537,1756698124928,-177.26773766,0.00015588,2]
[382658538,1756698127673,-301.83322914,0.00015015,2]
[382658539,1756698132316,-152.85861368,0.00015015,2]
[382658540,1756698135583,-164.45451326,0.00015015,2]
[382658541,1756698136403,5000.0,0.0001475,2]
[382658542,1756698139869,-178.80398079,0.00014926,2]
[382658543,1756698142942,-221.82122579,0.00014926,2]
[382658544,1756698145586,-231.4813612,0.00014926,2]
[382658545,1756698147878,-5000.01,0.00014926,2]
[382658546,1756698148076,-10000.01,0.00014926,2]
[382658547,1756698148197,-10000.01,0.00014926,2]
[382658548,1756698148309,-10000.01,0.00014926,2]
[382658549,1756698148453,-10000.01,0.00014926,2]
[382658550,1756698148579,-10000.01,0.00014926,2]
[382658551,1756698148764,-2010.91796942,0.00014926,2]
[382658552,1756698148792,-1352.93427462,0.00015015,2]
[382658553,1756698148820,-1417.79730062,0.00015045,2]
[382658554,1756698148878,-436.71091068,0.00015045,2]
[382658555,1756698148910,-127.16271995,0.00015588,2]
[382658556,1756698148942,-480.0,0.00015904,2]
[382658557,1756698148969,-552.52,0.00015904,2]
[382658558,1756698148998,-480.0,0.00015904,2]
[382658559,1756698149029,-480.0,0.00015925,2]
[382658560,1756698149057,-300.0,0.00015925,2]
[382658561,1756698149087,-853.54,0.00015925,2]
[382658562,1756698149118,-1145.66,0.00015925,2]
[382658563,1756698149152,-480.0,0.00015925,2]
[382658564,1756698149392,-481.4140215,0.00015925,2]
[382658565,1756698149420,-480.0,0.00015925,2]
[382658566,1756698149448,-214.16707778,0.00015925,2]
[382658567,1756698149477,-480.0,0.00015925,2]
[382658568,1756698149506,-966.08,0.00015925,2]
[382658569,1756698149536,-192.34495109,0.00015925,2]
[382658570,1756698149564,-683.0,0.00015925,2]
[382658571,1756698149592,-354.42976331,0.00015926,2]
[382658572,1756698149621,-480.0,0.00015926,2]
[382658573,1756698149653,-575.43,0.00015926,2]
[382658574,1756698149754,-480.0,0.00015926,2]
[382658575,1756698149783,-480.0,0.00015926,2]
[382658576,1756698149809,-480.0,0.00015926,2]
[382658577,1756698149836,-2298.04,0.00015926,2]
[382658578,1756698150256,-480.0,0.00015904,2]
[382658579,1756698150265,-2523.93,0.00015926,2]
[382658580,1756698150274,-187.69239414,0.00015926,2]
[382658581,1756698159046,5000.0,0.0001475,2]
[382658582,1756698182274,5000.0,0.0001475,2]
[382658583,1756698198877,0.01,0.0001475,2]
[382658584,1756698198900,4999.99,0.0001475,2]
[382658585,1756698207421,5000.0,0.0001475,2]
[382658586,1756698208877,-226.14779742,0.00014915,2]
[382658587,1756698208899,-54.32255212,0.00014917,2]
[382658588,1756698209688,0.02,0.0001474,2]
[382658589,1756698209712,9999.98,0.0001474,2]
[382658590,1756698212193,-146.64568118,0.00014917,2]
[382658591,1756698212215,-38.61860053,0.00014925,2]
[382658592,1756698216625,-188.24858724,0.00014925,2]
[382658593,1756698216647,-124.01785203,0.00015015,2]
[382658594,1756698219997,-356.71587993,0.00014925,2]
[382658595,1756698223307,0.03,0.0001475,2]
[382658596,1756698223328,4999.97,0.0001475,2]
[382658597,1756698224637,-109.01875132,0.00014925,2]
[382658598,1756698224658,-219.56758814,0.00015015,2]
[382658599,1756698229470,-174.14722121,0.00015015,2]
[382658600,1756698231010,-308.43808991,0.00015015,2]
[382658601,1756698231277,5000.0,0.0001475,2]
[382658602,1756698236047,-641.31666234,0.00015015,2]
[382658603,1756698236684,0.04,0.00013699,2]
[382658604,1756698236710,1006.908595,0.00013699,2]
[382658605,1756698239451,-261.51896563,0.00015015,2]
[382658608,1756698243671,-163.18205561,0.00015015,2]